Cogmind - Beta 13 @@@ ROGUE MODE // 2024.03.07 @ 17:58:09 Player: SunE Result: Destroyed by as-58036 with Assembled Heavy Rifle Performance ------------- Evolutions (0) 0 Regions Visited (4) 800 Robots Destroyed (3) 15 Value Destroyed (84) 84 Prototype IDs (0) 0 Alien Tech Used (0) 0 Bonus (46) 46 TOTAL SCORE: 945 Bonus ------- Follower Combat Kills 60 Friendly Fire -14 Cogmind --------- Core Integrity 0/250 Matter 290/300 Energy 100/100 System Corruption 0% Temperature Cool (0) Movement Rolling (100) Location -9/Mines Parts ------- > --- POWER (1) -------- (None) > --- PROPULSION (2) --- Compact Wheel > --- UTILITY (2) ------ Small Storage Unit Propulsion Shielding > --- WEAPON (2) ------- Small Laser > --- INVENTORY (8) ---- Reinforced Deuterium Engine Aluminum Leg Aluminum Leg Compact Wheel Experimental Sensor Array Thief Drone Bay Peak State ------------ > --- POWER ------------ Ion Engine > --- PROPULSION ------- Compact Wheel Compact Wheel > --- UTILITY ---------- Small Storage Unit Propulsion Shielding > --- WEAPON ----------- EM Pulse Gun Medium Laser > --- INVENTORY -------- Ion Engine Aluminum Leg Aluminum Leg Compact Wheel Thief Drone Bay Small Laser [Rating: 8] Favorites ----------- Power Ion Engine Engine Ion Engine Propulsion Compact Wheel Wheel Compact Wheel Utility Small Storage Unit Storage Small Storage Unit Protection Propulsion Shielding Weapon Medium Laser Energy Gun Medium Laser Build | -11 -10 -10 -10 -9 ------- Run | Yrd Mat Min Exi Min Slots Evolved . | . . . . . Power . | . . . . . Propulsion . | . . . . . Utility . | . . . . . Weapon . | . . . . . Parts Attached 9 | 6 1 . . 2 Power 2 | 1 . . . 1 Engine 2 | 1 . . . 1 Core . | . . . . . Reactor . | . . . . . Propulsion 2 | 2 . . . . Treads . | . . . . . Leg . | . . . . . Wheel 2 | 2 . . . . Hover . | . . . . . Flight . | . . . . . Utility 2 | 1 1 . . . Device . | . . . . . Storage 1 | 1 . . . . Processor . | . . . . . Hackware . | . . . . . Protection 1 | . 1 . . . Artifact . | . . . . . Weapon 3 | 2 . . . 1 Energy Gun 3 | 2 . . . 1 Energy Cannon . | . . . . . Ballistic Gun . | . . . . . Ballistic Cannon . | . . . . . Launcher . | . . . . . Special Weapon . | . . . . . Impact Weapon . | . . . . . Slashing Weapon . | . . . . . Piercing Weapon . | . . . . . Special Melee Weapon . | . . . . . Unidentified Prototypes . | . . . . . Parts Lost 5 | . . 1 . 4 Power 2 | . . . . 2 Propulsion 1 | . . . . 1 Utility . | . . . . . Weapon 2 | . . 1 . 1 Highest Loss Streak 4 | . . 1 . 4 To Critical Strikes . | . . . . . Average Slot Usage (%) 90 | . 97 95 85 85 Engine 14 | . 14 14 14 14 Wheel 28 | . 28 28 28 28 Storage 14 | . 14 14 14 14 Protection 13 | . 12 14 14 14 Energy Gun 19 | . 28 24 14 14 Naked Turns . | . . . . . Heaviest Build 15 | 14 15 15 13 13 Greatest Support 32 | 32 32 32 32 32 Greatest Overweight (x) . | . . . . . Average Overweight (x) . | . . . . . Largest Inventory Capacity 8 | 8 8 8 8 8 Average Capacity 7 | 7 8 8 8 8 Most Carried 8 | 6 5 6 7 8 Average Carried 5 | 3 4 5 6 7 Final Capacity 8 | 8 8 8 8 8 Final Carried 7 | 4 5 6 7 6 Class Distribution -------------------- 100% | Mutant Dominant Class ---------------- Mutant | -10/Materials Mutant | -10/Mines Mutant | -10/Exiles Mutant | -9/Mines Resources | -11 -10 -10 -10 -9 ----------- Run | Yrd Mat Min Exi Min Matter Collected 270 | 229 41 . . . Remotely . | . . . . . Salvage Created 103 | . 103 . . . Parts 6 | . 6 . . . Haulers Intercepted . | . . . . . Recyclers Shooed . | . . . . . Parts Field Recycled . | . . . . . Retrieved Matter . | . . . . . Parts Self-Destructed . | . . . . . Prevented . | . . . . . Kills | -11 -10 -10 -10 -9 ------- Run | Yrd Mat Min Exi Min Combat Hostiles Destroyed 2 | . 2 . . . Guns 2 | . 2 . . . Classes Destroyed 2 | . 2 . . . Watcher 1 | . 1 . . . Grunt 2 | . 2 . . . Best Kill Streak 3 | . 3 . . . Combat Bots Only 2 | . 2 . . . Max Kills in Single Turn 1 | . 1 . . . Gunslinging . | . . . . . Exploded . | . . . . . Melee . | . . . . . Uniques/NPCs Destroyed . | . . . . . Combat | -11 -10 -10 -10 -9 -------- Run | Yrd Mat Min Exi Min Hostile Shots Fired 51 | . 10 7 . 34 Missed 10 | . 3 1 . 6 Damage Taken 601 | . 74 102 . 425 Core 252 | . 20 43 . 189 Absorbed by Shields . | . . . . . Redirected to Shielding 16 | . . 5 . 11 Core Remaining (%) 100 | 100 . . . . Volleys Fired 19 | . 7 5 . 7 Largest 2 | . 2 2 . 1 Hottest 90 | . 90 90 . 50 Shots Fired 28 | . 14 7 . 7 Gun 28 | . 14 7 . 7 Cannon . | . . . . . Launcher . | . . . . . Special . | . . . . . Kinetic . | . . . . . Thermal 19 | . 7 5 . 7 Explosive . | . . . . . Electromagnetic 9 | . 7 2 . . Robot Hit Streak 5 | . 5 2 . 3 Robot Miss Streak 3 | . 2 2 . 3 Penetration Max . | . . . . . Secondary Targets 1 | . 1 . . . Max Gunslinging Chain 1 | . 1 . . . Shots Hit Robots 15 | . 9 3 . 3 Core Hits 9 | . 5 2 . 2 Critical Kills . | . . . . . Critical Parts Destroyed . | . . . . . Critical Strikes . | . . . . . Melee Attacks . | . . . . . Impact . | . . . . . Slashing . | . . . . . Piercing . | . . . . . Sneak Attacks . | . . . . . Combat Hostiles . | . . . . . Follow-up Attacks . | . . . . . Damage Inflicted 230 | . 123 64 . 43 Guns 219 | . 123 53 . 43 Cannons . | . . . . . Explosions . | . . . . . Melee . | . . . . . Ramming 11 | . . 11 . . Kinetic . | . . . . . Thermal 130 | . 61 26 . 43 Explosive . | . . . . . Electromagnetic 89 | . 62 27 . . Impact . | . . . . . Slashing . | . . . . . Piercing . | . . . . . Highest Corruption . | . . . . . Average Corruption . | . . . . . Corruption Purged . | . . . . . Corruption Blocked . | . . . . . Overload Shots . | . . . . . Overflow Damage . | . . . . . Projectiles . | . . . . . Explosions . | . . . . . Melee . | . . . . . Knockbacks 1 | . . 1 . . Impact 1 | . . 1 . . Kinetic . | . . . . . Secondary . | . . . . . Self-Inflicted Damage 5 | . . 5 . . Shots . | . . . . . Rammed 2 | . . 2 . . Targets Rammed 2 | . . 2 . . Kicked . | . . . . . Crushed . | . . . . . Highest Temperature 153 | . 138 153 . 20 Average Temperature 67 | . 73 81 . 11 Received Heat Transfer 108 | . 36 72 . . Siege Activations . | . . . . . Robots Corrupted . | . . . . . Combat Hostiles . | . . . . . Parts Fried . | . . . . . Impact Corruptions . | . . . . . Robots Melted . | . . . . . Combat Hostiles . | . . . . . Parts Melted 1 | . 1 . . . Heat Transferred 371 | . 185 74 . 112 Parts Sabotaged . | . . . . . Parts Stolen . | . . . . . Parts Stripped . | . . . . . Power Chain Reactions . | . . . . . Alert | -11 -10 -10 -10 -9 ------- Run | Yrd Mat Min Exi Min Peak Influence 74 | . 74 74 . . Initial 28 | . . 28 . . Average 23 | . 33 40 . . Maximum Alert Level . | . . . . . Low Security (%) 100 | 100 100 100 . 100 Level 1 . | . . . . . Level 2 . | . . . . . Level 3 . | . . . . . Level 4 . | . . . . . Level 5 . | . . . . . High Security . | . . . . . Max Security . | . . . . . Squads Dispatched 1 | . 1 . . . Investigation 1 | . 1 . . . Extermination . | . . . . . Reinforcement . | . . . . . Assault . | . . . . . Garrison . | . . . . . Intercept . | . . . . . Searches Triggered . | . . . . . Construction Impeded . | . . . . . Haulers Reinforced . | . . . . . Active Scanning Responses . | . . . . . Cargo Convoy Interrupts . | . . . . . Stealth | -11 -10 -10 -10 -9 --------- Run | Yrd Mat Min Exi Min Distress Signals 1 | . . . . 1 Communications Jammed . | . . . . . Distress Signals . | . . . . . Times Spotted 13 | . 6 2 . 5 Peak Tracking Total 4 | . 3 2 . 4 Tactical Retreats . | . . . . . Traps | -11 -10 -10 -10 -9 ------- Run | Yrd Mat Min Exi Min Traps Triggered . | . . . . . Indirectly . | . . . . . Trap Hack Attempts . | . . . . . Triggered . | . . . . . Disarmed 6 | . 6 . . . Reprogrammed . | . . . . . Reused . | . . . . . Traps Extracted . | . . . . . Installed . | . . . . . Triggered . | . . . . . Machines | -11 -10 -10 -10 -9 ---------- Run | Yrd Mat Min Exi Min Machines Disabled . | . . . . . Max in Single Turn . | . . . . . Machines Repaired . | . . . . . Machines Dismantled . | . . . . . Machines Sabotaged . | . . . . . Overloaded Fab Kills . | . . . . . Hacking | -11 -10 -10 -10 -9 --------- Run | Yrd Mat Min Exi Min Machines Accessed 5 | . 3 1 1 . Terminals 2 | . 2 . . . Fabricators . | . . . . . Repair Stations . | . . . . . Recycling Units 1 | . 1 . . . Scanalyzers . | . . . . . Garrison Access . | . . . . . Total Hacks 30 | . 6 1 23 . Successful 29 | . 5 1 23 . Failed 1 | . 1 . . . Catastrophic . | . . . . . Database Lockouts . | . . . . . Manual . | . . . . . Terminals 5 | . 5 . . . Fabricators . | . . . . . Repair Stations . | . . . . . Recycling Units 1 | . 1 . . . Scanalyzers . | . . . . . Garrison Access . | . . . . . Terminal Hacks 28 | . 4 1 23 . Record 25 | . 2 . 23 . Open Door 1 | . . 1 . . Locate Traps 1 | . 1 . . . Disarm Traps 1 | . 1 . . . Fabricator Hacks . | . . . . . Repair Station Hacks . | . . . . . Recycling Unit Hacks 1 | . 1 . . . Report Inventory 1 | . 1 . . . Scanalyzer . | . . . . . Garrison Access Hacks . | . . . . . Unauthorized Hacks . | . . . . . Terminals . | . . . . . Fabricators . | . . . . . Repair Stations . | . . . . . Recycling Units . | . . . . . Scanalyzers . | . . . . . Garrison Access . | . . . . . Data Cores Recovered . | . . . . . Used . | . . . . . Hacking Detections 1 | . 1 . . . Full Trace Events 1 | . 1 . . . Feedback Events . | . . . . . Feedback Blocked . | . . . . . Robot Schematics Acquired . | . . . . . Robots Built . | . . . . . Authchips . | . . . . . Time . | . . . . . Total Robot Build Rating . | . . . . . Part Schematics Acquired . | . . . . . Parts Built . | . . . . . Authchips . | . . . . . Time . | . . . . . Total Part Build Rating . | . . . . . Parts Repaired . | . . . . . Time . | . . . . . Parts Recycled . | . . . . . Recycled Matter . | . . . . . Retrieved Matter . | . . . . . Retrieved Components . | . . . . . Parts Scanalyzed . | . . . . . Part Schematics Acquired . | . . . . . Parts Damaged . | . . . . . Bothacking | -11 -10 -10 -10 -9 ------------ Run | Yrd Mat Min Exi Min Used RIF Installer . | . . . . . Robots Hacked . | . . . . . Non-combat . | . . . . . Combat . | . . . . . Robot Hacks Applied . | . . . . . Relay Couplers Released . | . . . . . Fabnet Peak Effective % . | . . . . . Robots Rewired . | . . . . . Allies Hacked . | . . . . . Hacks Repelled . | . . . . . Allies | -11 -10 -10 -10 -9 -------- Run | Yrd Mat Min Exi Min Total Allies 2 | . . 2 . . Largest Group 2 | . . 2 1 . Highest-Rated Group 57 | . . 57 31 . Highest-Rated Ally 31 | . . 31 31 . Total Orders . | . . . . . Ally Attacks 8 | . . 8 . . Total Damage 129 | . . 129 . . Kills 2 | . . 2 . . Allies Corrupted . | . . . . . Allies Melted . | . . . . . Intel | -11 -10 -10 -10 -9 ------- Run | Yrd Mat Min Exi Min Robot Analysis Total . | . . . . . Derelict Logs Recovered 2 | . . 1 . 1 Drone Launches . | . . . . . Drone Recoveries . | . . . . . Exploration | -11 -10 -10 -10 -9 ------------- Run | Yrd Mat Min Exi Min Turns Passed 743 | 59 75 264 179 166 Spaces Moved 679 | 51 52 249 178 149 Core 16 | 16 . . . . Treads . | . . . . . Legs . | . . . . . Wheels 663 | 35 52 249 178 149 Hover . | . . . . . Flight . | . . . . . Fastest Speed 50 | 50 100 100 100 100 Average Speed 98 | 84 100 100 100 100 Slowest Speed 100 | 100 100 100 100 100 Overloaded Moves . | . . . . . Propulsion Burnouts . | . . . . . Robots Hopped . | . . . . . Cave-ins Triggered . | . . . . . Exploration Rate (%) 33 | 3 13 55 54 41 Regions Visited 4 Branch Regions 3 Pre-discovered Areas 1 | . . . 1 . Known Exits Taken . | . . . . . Unknown Exits Taken 4 | 1 1 1 1 . Scrap Searched 1 | . . . . 1 Spaces Dug . | . . . . . Terrain Destroyed . | . . . . . Melee . | . . . . . Projectile . | . . . . . AOE . | . . . . . Terrain Rammed . | . . . . . Walls Destroyed . | . . . . . Machines Disabled . | . . . . . Actions | -11 -10 -10 -10 -9 --------- Run | Yrd Mat Min Exi Min Total 722 | 66 61 257 179 159 Wait 1 | . . 1 . . Move 675 | 50 51 248 177 149 Hop . | . . . . . Pick Up 15 | 10 2 1 1 1 Fast Attach . | . . . . . Attach 9 | 6 1 . . 2 Detach . | . . . . . Swap . | . . . . . Drop . | . . . . . Fire 19 | . 7 5 . 7 Melee . | . . . . . Ram 2 | . . 2 . . Kick . | . . . . . Crush . | . . . . . Escape Stasis . | . . . . . Rewire 1 | . . . 1 . Trap . | . . . . . Miscellaneous . | . . . . . Route ------- -11/Scrapyard -10/Materials -10/Mines -10/Exiles -9/Mines (discovered 1 exit: Mat) History --------- Turn | Location | Event 34 | -11/Scrapyard | Discovered new exit (range 14) 60 | -11/Scrapyard | Entered Materials 115 | -10/Materials | Discovered new exit (range 10) 135 | -10/Materials | Entered Mines 198 | -10/Mines | Found the Drone Emporium 202 | -10/Mines | Found Prototype Device 233 | -10/Mines | Learned Materials security intel 309 | -10/Mines | Build established: Mutant 387 | -10/Mines | Deemed a non-threat by the Exiles lab entrance 388 | -10/Mines | Discovered new exit (range 5) 399 | -10/Mines | Entered Exiles 399 | -10/Exiles | Accompanied by 1 ally 425 | -10/Exiles | Met 8R-AWN 429 | -10/Exiles | Led the pair of lost Derelicts to a safe place 452 | -10/Exiles | Met EX-HEX 495 | -10/Exiles | Met EX-BIN 507 | -10/Exiles | Met EX-DEC 521 | -10/Exiles | Learned location of Zion (-6) 567 | -10/Exiles | Discovered new exit (range 12) 578 | -10/Exiles | Entered Mines 597 | -9/Mines | Identified exit to Materials 643 | -9/Mines | Met a Derelict bent on vengeance 696 | -9/Mines | Assembled infested the area 701 | -9/Mines | Assisted by a Guerilla fighting off Assembled 710 | -9/Mines | Found a damaged Exp. Sensor Array with a note attached 712 | -9/Mines | Found Prototype Device 731 | -9/Mines | Core integrity fell below 50% 737 | -9/Mines | Core integrity fell below 20% 744 | -9/Mines | Destroyed by as-58036 with Assembled Heavy Rifle Last Messages --------------- 00710_ A damaged part is partially visible under some rubble. There's a note attached: "Everyone keeps telling us we should avoid high-traffic areas because that's where patrols are more likely to show up, but that doesn't do us much good if we can't spot those areas until they're on top of us... With this we can! Deliver it to Megawrench for repairs then we'll never be afraid of an ambush while sneaking around Materials again, ha." 00712_ K-01 Serf collects debris. 00712_ Acquired Prototype Device. 00729_ K-01 Serf destroyed. 00731_ K-01 Serf collects debris. 00732_ as-97054 destroyed. 00732_ Ion Engine destroyed. 00733_ Med. Laser destroyed. 00737_ K-01 Serf collects debris. 00742_ Com. Wheel destroyed. 00742_ Ion Engine destroyed. Map ----- +----------------------------------------------------+ | ????????????# #### | | ????????????######## | | ???????????????????###### | | ??????#####?????????????# | | ???#### ###?????####??## | | ???# ##???## ######### | | ??# ##??# ##???# | | ???# ## #### ##??? | | ???####### ## #??? | | ?????????### #### | | ???????????#### ### | | ??????????????#####?## | | ?????????????????????### ##### | | ???????????????????????# #???? | | ???????????????????????# #???? | | ???????????????????????# #???? | | ??###??????????????##### #???? | | ?## ######????????# #???? | | ?# ########## #####???? | | ?# #???????? | | ??# ###########???????? | | ??### # ##?????????????????? | | ????# ####??????????????????? | | ????# a#######???????????????? | | ????#ka #?????????? | | ????#@a###### #?????????? | | ????#%a#?????????????????????? | | ????# #?????????????????????? | | ????# #?????????????????????? | | ????# #?????????????????????? | | ????# #?????????????????????? | | ????# #?????????????????????? | | ???? ?????????????????????? | | ???? ????????????????????? | | ???? ""???????????????????? | | ???? ""???????????????????? | | ???# """??????????????????? | | ???# ""???????????????????? | | ???# ???????????????????? | | ???# "????????????????????? | | ???# "????????????????????? | | ???# "????????????????????? | | ???? "????????????????????? | | ???? ????????????????????? | | ????####?????????????????????? | | ?????????????????????????????? | | | | | | | | | +----------------------------------------------------+ Best States ------------- Heat Dissipation 25 Energy Generation 10 Energy Capacity 250 Matter Stores 300 Matter Capacity 300 Sight Range 16 Terrain Scan Density 10 Propulsion Shielding 33 Evasion (%) 50 Item Schematics ----------------- None Robot Schematics ------------------ None Fabricated ------------ Nothing Alien Tech Used ----------------- None Achievements -------------- None Challenges ------------ None Game ------ Seed TrapImpactDrive Manual? 0 Play Time 00:14:59 Cumulative 10.9 hours Start 2024.03.07 @ 17:44:16 End 2024.03.07 @ 17:58:09 Sessions 1 Manual Loads 0 Difficulty Rogue Special Mode None Game No. 18 Rogue 18 Adventurer 0 Explorer 0 Win Type - Total 0 Types 0/0/0/0/0/0/0/0/0 Lore% 14 Gallery% 13 Achievement% 14 Wizard Run 0 Options --------- Layout 2 ASCII 0 Keyboard 0 Movement Numpad Keybinds 0 Fullscreen 1 Font 32/SmallcapsGlow Map View 50x44 Zoom Use 0% Tactical HUD 1 Map Filters NONE Filters NONE Steam 1 RUN: 4bb18c30-a6ec-42ed-a3ef-e43e58bda997